{"text_format":"1","workbook":"xlsx","n_sheets":3,"sheets":["Prompt","Cedula8BI","Enviar"],"not_rendered":{"charts":0,"images":4,"macros":1,"external_links":0,"defined_names":1,"comments":0,"pivot_tables":0},"unopened":[],"bounds":{"document_bytes":16777216,"sheet_cells":100000,"rows_first":2000,"rows_last":500,"rows_between":2000,"halvings":0,"cell_chars":16384,"cell_head_chars":4096},"cells_cut":0,"cells_raw":0,"read":"whole","date_system":"1900"}

{"sheet":"Prompt","index":0,"n_rows":38,"n_cols":4,"rows_kept":38,"cut":false,"hidden":false,"merged":[[0,3,1,5],[3,1,5,8],[8,1,9,8],[37,1,38,8]]}
[null,null,null,"¡ATENCIÓN!"]
[]
[]
[null,"Para hacer uso de las funcionalidades de esta Cédula Electrónica debe habilitar macros"]
[]
[]
[]
[]
[null,"Si utiliza Excel 2000, 2002, 2003 siga el siguiente procedimiento:"]
[]
[]
[]
[]
[]
[]
[]
[]
[]
[]
[]
[]
[]
[]
[]
[]
[]
[]
[]
[]
[]
[]
[]
[]
[]
[]
[]
[]
[null,"Si utiliza Excel 2007 siga el siguiente procedimiento:"]

{"sheet":"Cedula8BI","index":1,"n_rows":92,"n_cols":17,"rows_kept":92,"cut":false,"hidden":true,"merged":[[49,15,49,18],[22,2,24,4],[23,15,23,16],[1,5,1,13],[1,15,3,18],[33,13,33,14],[23,9,23,10],[2,5,2,13],[3,5,3,13],[32,5,33,6],[33,15,33,16],[33,7,33,8],[23,11,23,12],[12,5,12,6],[23,13,23,14],[22,5,23,6],[49,2,49,5],[47,6,47,9],[47,10,47,14],[32,2,34,4],[46,2,46,5],[46,6,46,9],[46,10,46,14],[41,3,41,4],[49,6,49,9],[49,10,49,14],[48,2,48,5],[14,5,14,17],[12,16,12,17],[47,2,47,5],[48,6,48,9],[48,10,48,14],[33,11,33,12],[47,15,47,18],[48,15,48,18],[33,9,33,10],[46,15,46,18],[23,7,23,8],[16,14,16,17],[16,5,16,11]]}
[]
[null,null,null,null,null,"CENSO EDUCATIVO 2023",null,null,null,null,null,null,null,null,null,"8BI"]
[null,null,null,null,null,"EDUCACIÓN BÁSICA ESPECIAL"]
[null,null,null,null,null,"INICIAL"]
[null,null,null,"Version :",1]
[null,null,"INSTRUCCIONES DEL FORMATO ELECTRÓNICO "]
[]
[]
[]
[null,null,"IDENTIFICACIÓN DEL SERVICIO EDUCATIVO"]
[]
[]
[null,null,null,"1. CÓDIGO MODULAR :",null,null,null,null,null,null,null,"2. CÓDIGO DE LOCAL EDUCATIVO :"]
[]
[null,null,null,"3. NOMBRE DEL SERVICIO :",null,""]
[]
[null,null,null,"4. DISTRITO :",null,"",null,null,null,null,null,null,null,"LOCALIDAD :  ",""]
[]
[]
[null,null,"100. RESULTADO DEL EJERCICIO EDUCATIVO"]
[null,null,"Complete y remita esta sección entre diciembre del año 2023 y enero del año 2024."]
[null,null,"101. EN EDUCACIÓN INICIAL, POR EDAD Y SEXO, SEGÚN SITUACIÓN DEL EJERCICIO EDUCATIVO"]
[null,null,"SITUACIÓN",null,null,"TOTAL",null,"EDAD Y SEXO"]
[null,null,null,null,null,null,null,3,null,4,null,5,null,6,null,"7 y más"]
[null,null,null,null,null,"H","M","H","M","H","M","H","M","H","M","H","M"]
["00",null,"TOTAL MATRÍCULA",null,null,{"$f":"SUM(F27:F30)","v":0},0,0,0,0,0,0,0,0,0,0,0]
["01",null,"Promovidos",null,null,{"$f":"H27+J27+L27+N27+P27","v":0},0]
["02",null,"Trasladados a otras II.EE.",null,null,0,0]
["03",null,"Retirados",null,null,0,0]
["04",null,"Fallecidos",null,null,0,0]
[]
[null,null,"102. RETIRADOS, POR EDAD Y SEXO, SEGÚN MOTIVO DE RETIRO"]
[null,null,"MOTIVO",null,null,"TOTAL",null,"EDAD Y SEXO"]
[null,null,null,null,null,null,null,3,null,4,null,5,null,6,null,"7 y más"]
[null,null,null,null,null,"H","M","H","M","H","M","H","M","H","M","H","M"]
["00",null,"TOTAL RETIRADOS",null,null,{"$f":"SUM(F37:F42)","v":0},0,0,0,0,0,0,0,0,0,0,{"$f":"SUM(Q37:Q42)","v":0}]
["01",null,"Situción Económica",null,null,{"$f":"SUM(H37,J37,L37,N37,P37,R37,T37,V37,X37)","v":0},0]
["02",null,"Violencia",null,null,0,0]
["03",null,"Enfermedad",null,null,0,0]
["04",null,"Trabajo infantil",null,null,0,0]
["05",null,"Apoyo laboral agrícola",null,null,0,0]
["06",null,"Otros",null,null,0,0]
[null,null,"Nota: Los totales de esta tabla deben ser iguales al rubro de “Retirados” de la tabla 101."]
[]
[null,null,"DATOS DEL DIRECTOR Y/O RESPONSABLE (S) DEL LLENADO DE LA CÉDULA"]
[]
[null,null,"NOMBRES Y APELLIDOS",null,null,null,"CARGO",null,null,null,"CORREO ELECTRÓNICO",null,null,null,null,"TELÉFONO"]
[1]
[2]
[3]
[]
[]
[]
["DIRECTOR(A)"]
["SUB DIRECTOR(A)"]
["DOCENTE"]
["COORDINADOR(A)"]
["ASESOR"]
["ADMINISTRATIVO"]
["ASISTENTE"]
["AUXILIAR"]
["SECRETARIA(O)"]
["ESTADÍSTICO"]
["ESPECIALISTA"]
["BIBLIOTECARIO"]
["CARE"]
["COMANDANTE PNP"]
["CONTADOR"]
["DAIP"]
["DIGITADOR(A)"]
["GERENTE"]
["JEFE ACADÉMICO"]
["JEFE ADMINISTRATIVO"]
["JEFE DE ÁREA"]
["JEFE DE LABORATORIO"]
["JEFE DE PERSONAL"]
["JEFE DE SEDE"]
["JEFE DE UNIDAD"]
["OFICINISTA"]
["OPERADOR DE SISTEMAS"]
["PERSONAL DE SERVICIO"]
["PROGRAMADOR"]
["PROMOTOR(A)"]
["PSICOLOGO"]
["REGISTRADOR(A)"]
["REPRESENTANTE LEGAL"]
["SOPORTE TECNOLOGICO"]
["TÉC. ADMINISTRATIVO"]
["TESORERO(A)"]
["TRABAJADOR SOCIAL"]
["TUTOR"]
["OTROS"]

{"sheet":"Enviar","index":2,"n_rows":9,"n_cols":3,"rows_kept":9,"cut":false,"hidden":true,"merged":[[0,0,0,3],[1,0,1,3]]}
["CENSO ESCOLAR 2023"]
["RESULTADO DEL EJERCICIO EDUCATIVO"]
[]
[]
[null,"Paso 1:","Realice el ENVÍO con su clave EOL."]
[]
[null,"Paso 2:","Una vez realizado el ENVÍO,  Revise su constancia de envio."]
[]
[null,"  ADVERTENCIA","Asegúrese de registrar toda la información del nivel informante"]